fUSD/lending_fUSD_20250123
["ID","MTS","AMOUNT","RATE_DAILY","PERIOD"]
[350055447,1737593469709,-1307.05,0.00020547,2]
[350055448,1737593469718,-500.0,0.00020547,2]
[350055449,1737593469729,-852.22,0.00020547,2]
[350055450,1737593469738,-1000.0,0.00020547,2]
[350055451,1737593469747,-611.75,0.00020547,2]
[350055452,1737593469756,-500.0,0.00020547,2]
[350055453,1737593469765,-736.23,0.00020547,2]
[350055454,1737593469774,-1099.21,0.00020547,2]
[350055455,1737593469782,-835.35,0.00020547,2]
[350055456,1737593469792,-1296.55,0.00020547,2]
[350055457,1737593469801,-500.0,0.00020547,2]
[350055458,1737593469810,-500.0,0.00020547,2]
[350055459,1737593469819,-500.0,0.00020547,2]
[350055460,1737593469828,-500.0,0.00020547,2]
[350055461,1737593469838,-500.0,0.00020547,2]
[350055462,1737593469848,-500.0,0.00020547,2]
[350055463,1737593469857,-1532.18,0.00020547,2]
[350055464,1737593469866,-500.0,0.00020547,2]
[350055465,1737593469875,-500.0,0.00020547,2]
[350055466,1737593469884,-1631.98,0.00020547,2]
[350055467,1737593469893,-500.0,0.00020547,2]
[350055468,1737593469903,-500.0,0.00020547,2]
[350055469,1737593469911,-558.89,0.00020547,2]
[350055470,1737593469920,-500.0,0.00020547,2]
[350055471,1737593469929,-1312.6,0.00020547,2]
[350055472,1737593469938,-1600.4,0.00020547,2]
[350055473,1737593469951,-500.0,0.00020547,2]
[350055474,1737593469961,-1127.63,0.00020547,2]
[350055475,1737593469974,-206.65399869,0.00020547,2]
[350055476,1737593469983,-773.95,0.00020547,2]
[350055477,1737593469995,-1730.45,0.00020547,2]
[350055478,1737593470003,-741.16,0.00020547,2]
[350055479,1737593470012,-500.0,0.00020547,2]
[350055480,1737593470021,-500.0,0.00020547,2]
[350055481,1737593470031,-979.77,0.00020547,2]
[350055482,1737593470040,-500.0,0.00020547,2]
[350055483,1737593470050,-814.59,0.00020547,2]
[350055484,1737593470060,-500.0,0.00020547,2]
[350055485,1737593470069,-1838.81,0.00020547,2]
[350055486,1737593470081,-500.0,0.00020547,2]
[350055487,1737593470091,-738.61,0.00020547,2]
[350055488,1737593470100,-671.34,0.00020547,2]
[350055489,1737593470110,-501.42,0.00020547,2]
[350055490,1737593470120,-1024.69,0.00020547,2]
[350055491,1737593470129,-500.0,0.00020547,2]
[350055492,1737593470139,-500.0,0.00020547,2]
[350055493,1737593470148,-500.0,0.00020547,2]
[350055494,1737593470157,-500.0,0.00020547,2]
[350055495,1737593470167,-1399.46,0.00020547,2]
[350055496,1737593470176,-1637.52,0.00020547,2]
[350055497,1737593470186,-500.0,0.00020547,2]
[350055498,1737593470196,-500.0,0.00020547,2]
[350055499,1737593470206,-500.0,0.00020547,2]
[350055500,1737593470216,-247.64933967,0.00020547,2]
[350055501,1737593470231,-1389.96,0.00020547,2]
[350055502,1737593470241,-551.34,0.00020547,2]
[350055503,1737593470250,-500.0,0.00020547,2]
[350055504,1737593470261,-500.0,0.00020547,2]
[350055505,1737593470272,-1216.14,0.00020547,2]
[350055506,1737593470283,-500.0,0.00020547,2]
[350055507,1737593470294,-500.0,0.00020547,2]
[350055508,1737593470303,-500.0,0.00020547,2]
[350055509,1737593470425,-500.0,0.00020547,2]
[350055510,1737593470435,-541.01,0.00020547,2]
[350055511,1737593470446,-505.89,0.00020547,2]
[350055512,1737593470455,-500.0,0.00020547,2]
[350055513,1737593470465,-500.0,0.00020547,2]
[350055514,1737593470477,-553.45,0.00020547,2]
[350055515,1737593470486,-500.0,0.00020547,2]
[350055516,1737593470496,-500.0,0.00020547,2]
[350055517,1737593470505,-500.0,0.00020547,2]
[350055518,1737593470515,-500.0,0.00020547,2]
[350055519,1737593470524,-500.0,0.00020547,2]
[350055520,1737593470534,-500.0,0.00020547,2]
[350055521,1737593470545,-500.0,0.00020547,2]
[350055522,1737593470554,-500.0,0.00020547,2]
[350055523,1737593470564,-500.0,0.00020547,2]
[350055524,1737593470574,-676.9,0.00020547,2]
[350055525,1737593470583,-500.0,0.00020547,2]
[350055526,1737593470593,-500.0,0.00020547,2]
[350055527,1737593470602,-500.0,0.00020547,2]
[350055528,1737593470611,-1780.08,0.00020547,2]
[350055529,1737593470621,-859.24,0.00020547,2]
[350055530,1737593470631,-500.0,0.00020547,2]
[350055531,1737593470641,-500.0,0.00020547,2]
[350055532,1737593470650,-559.06,0.00020547,2]
[350055533,1737593470659,-500.0,0.00020547,2]
[350055534,1737593470669,-500.0,0.00020547,2]
[350055535,1737593470678,-705.9,0.00020547,2]
[350055536,1737593470687,-580.02,0.00020547,2]
[350055537,1737593470696,-500.0,0.00020547,2]
[350055538,1737593470706,-715.2,0.00020547,2]
[350055539,1737593470715,-677.01,0.00020547,2]
[350055540,1737593470731,-500.0,0.00020547,2]
[350055541,1737593470740,-990.45,0.00020547,2]
[350055542,1737593470750,-500.0,0.00020547,2]
[350055543,1737593470760,-972.02,0.00020547,2]
[350055544,1737593470769,-500.0,0.00020547,2]
[350055545,1737593470778,-500.0,0.00020547,2]
[350055546,1737593470787,-500.0,0.00020547,2]
[350055547,1737593470797,-915.61,0.00020547,2]
[350055548,1737593470807,-500.0,0.00020547,2]
[350055549,1737593470816,-927.47,0.00020547,2]
[350055550,1737593470825,-1648.34,0.00020547,2]
[350055551,1737593470834,-500.0,0.00020547,2]
[350055552,1737593470843,-561.76,0.00020547,2]
[350055553,1737593470853,-243.51446351,0.00020626,2]
[350055554,1737593470862,-25699.98508121,0.00020646,2]
[350055555,1737593470872,-944.70963571,0.00020659,2]
[350055556,1737593470881,-190.05417038,0.00020691,2]
[350055557,1737593470890,-500.0,0.0002074,2]
[350055558,1737593470900,-871.38,0.00020758,2]
[350055559,1737593470910,-667.91655185,0.00020784,2]
[350055560,1737593470919,-503.46261044,0.00020799,2]
[350055561,1737593470929,-1267.13473803,0.00020803,2]
[350055562,1737593470938,-1267.13473803,0.00020805,2]
[350055563,1737593470951,-500.0,0.0002082,2]
[350055564,1737593470960,-500.0,0.0002082,2]
[350055565,1737593470970,-250.0,0.00020821,2]
[350055566,1737593470981,-500.0,0.00020821,2]
[350055567,1737593470991,-500.0,0.00020821,2]
[350055568,1737593471000,-500.0,0.00020821,2]
[350055569,1737593471009,-500.0,0.00020821,2]
[350055570,1737593471019,-631.89,0.00020821,2]
[350055571,1737593471029,-500.0,0.00020821,2]
[350055572,1737593471038,-500.0,0.00020821,2]
[350055573,1737593471048,-500.0,0.00020821,2]
[350055574,1737593471057,-500.0,0.00020821,2]
[350055575,1737593471067,-500.0,0.00020821,2]
[350055576,1737593471076,-500.0,0.00020821,2]
[350055577,1737593471085,-500.0,0.00020821,2]
[350055578,1737593471095,-500.0,0.00020821,2]
[350055579,1737593471104,-500.0,0.00020821,2]
[350055580,1737593471114,-500.0,0.00020821,2]
[350055581,1737593471123,-500.0,0.00020821,2]
[350055582,1737593471133,-500.0,0.00020821,2]
[350055583,1737593471142,-500.0,0.00020821,2]
[350055584,1737593471152,-500.0,0.00020821,2]
[350055585,1737593471161,-561.61,0.00020821,2]
[350055586,1737593471171,-500.0,0.00020821,2]
[350055587,1737593471179,-472.91,0.00020821,2]
[350055588,1737593471189,-500.0,0.00020821,2]
[350055589,1737593471198,-500.0,0.00020821,2]
[350055590,1737593471207,-500.0,0.00020821,2]
[350055591,1737593471217,-500.0,0.00020821,2]
[350055592,1737593471229,-500.0,0.00020821,2]
[350055593,1737593471239,-500.0,0.00020821,2]
[350055594,1737593471248,-916.39,0.00020821,2]
[350055595,1737593471257,-500.0,0.00020821,2]
[350055596,1737593471266,-500.0,0.00020821,2]
[350055597,1737593471276,-500.0,0.00020821,2]
[350055598,1737593471286,-287.49839468,0.00020821,2]
[350055599,1737593471295,-156.346407,0.00020821,2]
[350055600,1737593471304,-500.0,0.00020821,2]
[350055601,1737593471313,-217.43561872,0.00020821,2]
[350055602,1737593471322,-500.0,0.00020821,2]
[350055603,1737593471334,-500.0,0.00020821,2]
[350055604,1737593471343,-500.0,0.00020821,2]
[350055605,1737593471352,-500.0,0.00020821,2]
[350055606,1737593471361,-500.0,0.00020821,2]
[350055607,1737593471370,-500.0,0.00020821,2]
[350055608,1737593471379,-500.0,0.00020821,2]
[350055609,1737593471388,-371.3582979,0.00020821,2]
[350055610,1737593471397,-500.0,0.00020821,2]
[350055611,1737593471406,-500.0,0.00020821,2]
[350055612,1737593471415,-500.0,0.00020821,2]
[350055613,1737593471424,-500.0,0.00020821,2]
[350055614,1737593471433,-500.0,0.00020821,2]
[350055615,1737593471442,-557.69,0.00020821,2]
[350055616,1737593471452,-500.0,0.00020821,2]
[350055617,1737593471461,-500.0,0.00020821,2]
[350055618,1737593471472,-500.0,0.00020821,2]
[350055619,1737593471482,-500.0,0.00020821,2]
[350055620,1737593471491,-500.0,0.00020821,2]
[350055621,1737593471500,-289.90853143,0.00020821,2]
[350055622,1737593471510,-500.0,0.00020821,2]
[350055623,1737593471519,-500.0,0.00020821,2]
[350055624,1737593471528,-500.0,0.00020821,2]
[350055625,1737593471536,-500.0,0.00020821,2]
[350055626,1737593471545,-549.32,0.00020821,2]
[350055627,1737593471554,-500.0,0.00020821,2]
[350055628,1737593471564,-500.0,0.00020821,2]
[350055629,1737593471574,-500.0,0.00020821,2]
[350055630,1737593471583,-500.0,0.00020821,2]
[350055631,1737593471592,-500.0,0.00020821,2]
[350055632,1737593471600,-500.0,0.00020821,2]
[350055633,1737593471610,-500.0,0.00020821,2]
[350055634,1737593471619,-537.45,0.00020821,2]
[350055635,1737593471628,-500.0,0.00020821,2]
[350055636,1737593471637,-500.0,0.00020821,2]
[350055637,1737593471646,-500.0,0.00020821,2]
[350055638,1737593471655,-500.0,0.00020821,2]
[350055639,1737593471664,-500.0,0.00020821,2]
[350055640,1737593471673,-500.0,0.00020821,2]
[350055641,1737593471682,-500.0,0.00020821,2]
[350055642,1737593471692,-500.0,0.00020821,2]
[350055643,1737593471701,-500.0,0.00020821,2]
[350055644,1737593471711,-500.0,0.00020821,2]
[350055645,1737593471721,-500.0,0.00020821,2]
[350055646,1737593471731,-500.0,0.00020821,2]
[350055647,1737593471740,-563.58,0.00020821,2]
[350055648,1737593471749,-500.0,0.00020821,2]
[350055649,1737593471758,-541.24732393,0.00020821,2]
[350055650,1737593471767,-500.0,0.00020821,2]
[350055651,1737593471776,-500.0,0.00020821,2]
[350055652,1737593471786,-500.0,0.00020821,2]
[350055653,1737593471795,-500.0,0.00020821,2]
[350055654,1737593471804,-500.0,0.00020821,2]
[350055655,1737593471813,-579.5,0.00020821,2]
[350055656,1737593471822,-656.16,0.00020821,2]
[350055657,1737593471831,-500.0,0.00020821,2]
[350055658,1737593471840,-500.0,0.00020821,2]
[350055659,1737593471849,-500.0,0.00020821,2]
[350055660,1737593471859,-500.0,0.00020821,2]
[350055661,1737593471867,-525.64,0.00020821,2]
[350055662,1737593471877,-500.0,0.00020821,2]
[350055663,1737593471886,-569.12,0.00020821,2]
[350055664,1737593471895,-500.0,0.00020821,2]
[350055665,1737593471904,-500.0,0.00020821,2]
[350055666,1737593471913,-500.0,0.00020821,2]
[350055667,1737593471922,-500.0,0.00020821,2]
[350055668,1737593471931,-500.0,0.00020821,2]
[350055669,1737593471941,-500.0,0.00020821,2]
[350055670,1737593471950,-500.0,0.00020821,2]
[350055671,1737593471964,-500.0,0.00020821,2]
[350055672,1737593471975,-440.9,0.00020821,2]
[350055673,1737593471984,-500.0,0.00020821,2]
[350055674,1737593471994,-500.0,0.00020821,2]
[350055675,1737593472005,-500.0,0.00020821,2]
[350055676,1737593472014,-501.23,0.00020821,2]
[350055677,1737593472024,-500.0,0.00020821,2]
[350055678,1737593472035,-500.0,0.00020821,2]
[350055679,1737593472044,-500.0,0.00020821,2]
[350055680,1737593472053,-728.84,0.00020821,2]
[350055681,1737593472062,-2064.71,0.00020821,2]
[350055682,1737593472070,-500.0,0.00020821,2]
[350055683,1737593472079,-1218.22,0.00020821,2]
[350055684,1737593472088,-500.0,0.00020821,2]
[350055685,1737593472097,-3655.05,0.00020821,2]
[350055686,1737593472106,-529.25,0.00020821,2]
[350055687,1737593472116,-645.57,0.00020821,2]
[350055688,1737593472124,-500.0,0.00020821,2]
[350055689,1737593472133,-837.72,0.00020821,2]
[350055690,1737593472142,-772.38,0.00020821,2]
[350055691,1737593472151,-519.59,0.00020821,2]
[350055692,1737593472160,-1468.95,0.00020821,2]
[350055693,1737593472169,-500.0,0.00020821,2]
[350055694,1737593472178,-652.09,0.00020821,2]
[350055695,1737593472187,-500.0,0.00020821,2]
[350055696,1737593472197,-769.88,0.00020821,2]
[350055697,1737593472205,-500.0,0.00020821,2]
[350055698,1737593472214,-500.0,0.00020821,2]
[350055699,1737593472226,-802.53,0.00020821,2]
[350055700,1737593472235,-500.0,0.00020821,2]
[350055701,1737593472244,-500.0,0.00020821,2]
[350055702,1737593472253,-997.23,0.00020821,2]
[350055703,1737593472263,-694.46,0.00020821,2]
[350055704,1737593472272,-500.0,0.00020821,2]
[350055705,1737593472281,-1084.29,0.00020821,2]
[350055706,1737593472290,-705.33,0.00020821,2]
[350055707,1737593472299,-500.0,0.00020821,2]
[350055708,1737593472308,-703.75,0.00020821,2]
[350055709,1737593472317,-1631.01,0.00020821,2]
[350055710,1737593472326,-1450.49,0.00020821,2]
[350055711,1737593472335,-515.55760062,0.00020821,2]
[350055712,1737593472345,-500.0,0.00020821,2]
[350055713,1737593472355,-2342.42,0.00020821,2]
[350055714,1737593472364,-390.04774386,0.00020821,2]
[350055715,1737593472373,-500.0,0.00020821,2]
[350055716,1737593472382,-1063.06,0.00020821,2]
[350055717,1737593472391,-638.79,0.00020821,2]
[350055718,1737593472400,-686.0,0.00020821,2]
[350055719,1737593472409,-500.0,0.00020821,2]
[350055720,1737593472418,-663.81,0.00020821,2]
[350055721,1737593472427,-1004.46,0.00020821,2]
[350055722,1737593472436,-500.0,0.00020821,2]
[350055723,1737593472445,-500.0,0.00020821,2]
[350055724,1737593472454,-679.54,0.00020821,2]
[350055725,1737593472463,-500.0,0.00020821,2]
[350055726,1737593472582,-1618.86,0.00020821,2]
[350055727,1737593472593,-1302.8,0.00020821,2]
[350055728,1737593472602,-3090.44,0.00020821,2]
[350055729,1737593472612,-2152.62,0.00020821,2]
[350055730,1737593472622,-500.0,0.00020821,2]
[350055731,1737593472632,-500.0,0.00020821,2]
[350055732,1737593472642,-500.0,0.00020821,2]
[350055733,1737593472652,-500.0,0.00020821,2]
[350055734,1737593472661,-1086.29,0.00020821,2]
[350055735,1737593472671,-500.0,0.00020821,2]
[350055736,1737593472680,-500.0,0.00020821,2]
[350055737,1737593472689,-500.0,0.00020821,2]
[350055738,1737593472698,-500.0,0.00020821,2]
[350055739,1737593472707,-641.42,0.00020821,2]
[350055740,1737593472717,-1307.05,0.00020821,2]
[350055741,1737593472728,-500.0,0.00020821,2]
[350055742,1737593472738,-852.22,0.00020821,2]
[350055743,1737593472747,-1000.0,0.00020821,2]
[350055744,1737593472757,-611.75,0.00020821,2]
[350055745,1737593472766,-736.23,0.00020821,2]
[350055746,1737593472775,-1099.21,0.00020821,2]
[350055747,1737593472784,-835.35,0.00020821,2]
[350055748,1737593472793,-1296.55,0.00020821,2]
[350055749,1737593472803,-500.0,0.00020821,2]
[350055750,1737593472812,-500.0,0.00020821,2]
[350055751,1737593472821,-500.0,0.00020821,2]
[350055752,1737593472830,-500.0,0.00020821,2]
[350055753,1737593472839,-500.0,0.00020821,2]
[350055754,1737593472848,-1532.18,0.00020821,2]
[350055755,1737593472858,-500.0,0.00020821,2]
[350055756,1737593472867,-500.0,0.00020821,2]
[350055757,1737593472876,-1631.98,0.00020821,2]
[350055758,1737593472885,-500.0,0.00020821,2]
[350055759,1737593472895,-500.0,0.00020821,2]
[350055760,1737593472904,-558.89,0.00020821,2]
[350055761,1737593472914,-500.0,0.00020821,2]
[350055762,1737593472923,-1312.6,0.00020821,2]
[350055763,1737593472932,-1600.4,0.00020821,2]
[350055764,1737593472941,-500.0,0.00020821,2]
[350055765,1737593472954,-1127.63,0.00020821,2]
[350055766,1737593472964,-773.95,0.00020821,2]
[350055767,1737593472976,-1730.45,0.00020821,2]
[350055768,1737593472985,-741.16,0.00020821,2]
[350055769,1737593472996,-500.0,0.00020821,2]
[350055770,1737593473005,-500.0,0.00020821,2]
[350055771,1737593473014,-979.77,0.00020821,2]
[350055772,1737593473024,-500.0,0.00020821,2]
[350055773,1737593473034,-814.59,0.00020821,2]
[350055774,1737593473044,-500.0,0.00020821,2]
[350055775,1737593473053,-1838.81,0.00020821,2]
[350055776,1737593473063,-500.0,0.00020821,2]
[350055777,1737593473072,-738.61,0.00020821,2]
[350055778,1737593473082,-671.34,0.00020821,2]
[350055779,1737593473091,-501.42,0.00020821,2]
[350055780,1737593473100,-1024.69,0.00020821,2]
[350055781,1737593473110,-500.0,0.00020821,2]
[350055782,1737593473119,-500.0,0.00020821,2]
[350055783,1737593473128,-500.0,0.00020821,2]
[350055784,1737593473137,-500.0,0.00020821,2]
[350055785,1737593473146,-1399.46,0.00020821,2]
[350055786,1737593473156,-1637.52,0.00020821,2]
[350055787,1737593473165,-500.0,0.00020821,2]
[350055788,1737593473174,-500.0,0.00020821,2]
[350055789,1737593473183,-500.0,0.00020821,2]
[350055790,1737593473192,-1389.96,0.00020821,2]
[350055791,1737593473201,-551.34,0.00020821,2]
[350055792,1737593473211,-500.0,0.00020821,2]
[350055793,1737593473221,-500.0,0.00020821,2]
[350055794,1737593473231,-1216.14,0.00020821,2]
[350055795,1737593473240,-473.18882447,0.00020821,2]
[350055796,1737593473250,-500.0,0.00020821,2]
[350055797,1737593473259,-500.0,0.00020821,2]
[350055798,1737593473268,-500.0,0.00020821,2]
[350055799,1737593473278,-541.01,0.00020821,2]
[350055800,1737593473287,-505.89,0.00020821,2]
[350055801,1737593473296,-500.0,0.00020821,2]
[350055802,1737593473306,-500.0,0.00020821,2]
[350055803,1737593473316,-553.45,0.00020821,2]
[350055804,1737593473326,-393.23509614,0.00020821,2]
[350055805,1737593473336,-622.33,0.00020821,2]
[350055806,1737593473346,-500.0,0.00020821,2]
[350055807,1737593473356,-500.0,0.00020821,2]
[350055808,1737593473366,-500.0,0.00020821,2]
[350055809,1737593473375,-676.9,0.00020821,2]
[350055810,1737593473385,-500.0,0.00020821,2]
[350055811,1737593473395,-500.0,0.00020821,2]
[350055812,1737593473404,-1780.08,0.00020821,2]
[350055813,1737593473414,-859.24,0.00020821,2]
[350055814,1737593473424,-500.0,0.00020821,2]
[350055815,1737593473433,-500.0,0.00020821,2]
[350055816,1737593473443,-559.06,0.00020821,2]
[350055817,1737593473453,-500.0,0.00020821,2]
[350055818,1737593473462,-500.0,0.00020821,2]
[350055819,1737593473473,-705.9,0.00020821,2]
[350055820,1737593473483,-580.02,0.00020821,2]
[350055821,1737593473492,-715.2,0.00020821,2]
[350055822,1737593473502,-677.01,0.00020821,2]
[350055823,1737593473512,-500.0,0.00020821,2]
[350055824,1737593473521,-990.45,0.00020821,2]
[350055825,1737593473531,-500.0,0.00020821,2]
[350055826,1737593473541,-972.02,0.00020821,2]
[350055827,1737593473553,-500.0,0.00020821,2]
[350055828,1737593473563,-500.0,0.00020821,2]
[350055829,1737593473574,-500.0,0.00020821,2]
[350055830,1737593473583,-915.61,0.00020821,2]
[350055831,1737593473593,-927.47,0.00020821,2]
[350055832,1737593473603,-500.0,0.00020821,2]
[350055833,1737593473612,-1648.34,0.00020821,2]
[350055834,1737593473621,-500.0,0.00020821,2]
[350055835,1737593473630,-561.76,0.00020821,2]
[350055836,1737593473640,-1267.13473803,0.00020837,2]
[350055837,1737593473649,-667.91655185,0.00020855,2]
[350055838,1737593473659,-944.70963571,0.00020866,2]
[350055839,1737593473668,-1267.13473803,0.00020896,2]
[350055840,1737593473677,-150.0,0.00020899,2]
[350055841,1737593473686,-1267.13473803,0.0002091,2]
[350055842,1737593473695,-667.91655185,0.00020917,2]
[350055843,1737593473704,-667.91655185,0.00020933,2]
[350055844,1737593473713,-667.91655185,0.00020937,2]
[350055845,1737593473725,-25699.98508121,0.00020959,2]
[350055846,1737593473734,-2090.0,0.00021,2]
[350055847,1737593473744,-700.0,0.00021,2]
[350055848,1737593473753,-150.0,0.00021025,2]
[350055849,1737593473762,-150.0,0.00021033,2]
[350055850,1737593473771,-243.51446351,0.00021051,2]
[350055851,1737593473781,-944.70963571,0.00021072,2]
[350055852,1737593473791,-150.0,0.00021088,2]
[350055853,1737593473800,-190.05417038,0.00021094,2]
[350055854,1737593473809,-500.0,0.00021094,2]
[350055855,1737593473819,-500.0,0.00021094,2]
[350055856,1737593473828,-500.0,0.00021095,2]
[350055857,1737593473837,-500.0,0.00021095,2]
[350055858,1737593473847,-500.0,0.00021095,2]
[350055859,1737593473856,-500.0,0.00021095,2]
[350055860,1737593473865,-631.89,0.00021095,2]
[350055861,1737593473874,-500.0,0.00021095,2]
[350055862,1737593473883,-500.0,0.00021095,2]
[350055863,1737593473895,-500.0,0.00021095,2]
[350055864,1737593473906,-500.0,0.00021095,2]
[350055865,1737593473915,-500.0,0.00021095,2]
[350055866,1737593473926,-500.0,0.00021095,2]
[350055867,1737593473936,-338.00979674,0.00021095,2]
[350055868,1737593473946,-500.0,0.00021095,2]
[350055869,1737593473955,-500.0,0.00021095,2]
[350055870,1737593473966,-500.0,0.00021095,2]
[350055871,1737593473978,-598.88,0.00021095,2]
[350055872,1737593473987,-500.0,0.00021095,2]
[350055873,1737593473997,-500.0,0.00021095,2]
[350055874,1737593474006,-608.15,0.00021095,2]
[350055875,1737593474015,-500.0,0.00021095,2]
[350055876,1737593474024,-500.0,0.00021095,2]
[350055877,1737593474036,-500.0,0.00021095,2]
[350055878,1737593474046,-500.0,0.00021095,2]
[350055879,1737593474055,-500.0,0.00021095,2]
[350055880,1737593474064,-916.39,0.00021095,2]
[350055881,1737593474073,-556.99236912,0.00021095,2]
[350055882,1737593474084,-500.0,0.00021095,2]
[350055883,1737593474093,-500.0,0.00021095,2]
[350055884,1737593474103,-500.0,0.00021095,2]
[350055885,1737593474112,-500.0,0.00021095,2]
[350055886,1737593474122,-500.0,0.00021095,2]
[350055887,1737593474131,-263.56525365,0.00021095,2]
[350055888,1737593474141,-500.0,0.00021095,2]
[350055889,1737593474151,-500.0,0.00021095,2]
[350055890,1737593474160,-500.0,0.00021095,2]
[350055891,1737593474169,-500.0,0.00021095,2]
[350055892,1737593474179,-500.0,0.00021095,2]
[350055893,1737593474189,-500.0,0.00021095,2]
[350055894,1737593474198,-500.0,0.00021095,2]
[350055895,1737593474207,-500.0,0.00021095,2]
[350055896,1737593474216,-557.69,0.00021095,2]
[350055897,1737593474228,-500.0,0.00021095,2]
[350055898,1737593474238,-500.0,0.00021095,2]
[350055899,1737593474247,-500.0,0.00021095,2]
[350055900,1737593474256,-500.19782587,0.00021095,2]
[350055901,1737593474266,-500.0,0.00021095,2]
[350055902,1737593474275,-500.0,0.00021095,2]
[350055903,1737593474285,-500.0,0.00021095,2]
[350055904,1737593474295,-500.0,0.00021095,2]
[350055905,1737593474304,-500.0,0.00021095,2]
[350055906,1737593474313,-549.32,0.00021095,2]
[350055907,1737593474323,-500.0,0.00021095,2]
[350055908,1737593474332,-500.0,0.00021095,2]
[350055909,1737593474342,-500.0,0.00021095,2]
[350055910,1737593474351,-500.0,0.00021095,2]
[350055911,1737593474361,-500.0,0.00021095,2]
[350055912,1737593474371,-500.0,0.00021095,2]
[350055913,1737593474380,-500.0,0.00021095,2]
[350055914,1737593474390,-537.45,0.00021095,2]
[350055915,1737593474399,-500.0,0.00021095,2]
[350055916,1737593474408,-500.0,0.00021095,2]
[350055917,1737593474417,-500.0,0.00021095,2]
[350055918,1737593474426,-500.0,0.00021095,2]
[350055919,1737593474436,-500.0,0.00021095,2]
[350055920,1737593474445,-500.0,0.00021095,2]
[350055921,1737593474454,-500.0,0.00021095,2]
[350055922,1737593474464,-500.0,0.00021095,2]
[350055923,1737593474477,-500.0,0.00021095,2]
[350055924,1737593474486,-500.0,0.00021095,2]
[350055925,1737593474495,-500.0,0.00021095,2]
[350055926,1737593474612,-500.0,0.00021095,2]
[350055927,1737593474621,-563.58,0.00021095,2]
[350055928,1737593474630,-500.0,0.00021095,2]
[350055929,1737593474639,-500.0,0.00021095,2]
[350055930,1737593474648,-500.0,0.00021095,2]
[350055931,1737593474658,-500.0,0.00021095,2]
[350055932,1737593474668,-500.0,0.00021095,2]
[350055933,1737593474677,-500.0,0.00021095,2]
[350055934,1737593474687,-579.5,0.00021095,2]
[350055935,1737593474697,-656.16,0.00021095,2]
[350055936,1737593474706,-500.0,0.00021095,2]
[350055937,1737593474715,-500.0,0.00021095,2]
[350055938,1737593474727,-500.0,0.00021095,2]
[350055939,1737593474737,-525.64,0.00021095,2]
[350055940,1737593474746,-500.0,0.00021095,2]
[350055941,1737593474755,-569.12,0.00021095,2]
[350055942,1737593474764,-500.0,0.00021095,2]
[350055943,1737593474773,-500.0,0.00021095,2]
[350055944,1737593474782,-500.0,0.00021095,2]
[350055945,1737593474791,-500.0,0.00021095,14]
[350055946,1737593474800,-500.0,0.00021095,14]